Cogmind - Beta 13 @@@ ROGUE MODE // 2024.04.02 @ 23:11:03 Player: djrubbie Result: Destroyed by G-34 Mercenary with Small Laser Performance ------------- Evolutions (1) 500 Regions Visited (3) 600 Robots Destroyed (39) 195 Value Destroyed (1015) 1015 Prototype IDs (0) 0 Alien Tech Used (0) 0 Bonus (77) 77 TOTAL SCORE: 2387 Bonus ------- Follower Combat Kills 77 Cogmind --------- Core Integrity 0/400 Matter 300/300 Energy 95/100 System Corruption 0% Temperature Cool (30) Movement Core (400) Ox7 Location -9/Materials Parts ------- > --- POWER (1) -------- (None) > --- PROPULSION (2) --- (None) > --- UTILITY (4) ------ Large Storage Unit Visual Processing Unit > --- WEAPON (2) ------- Particle Gun > --- INVENTORY (15) --- Flight Unit Large Storage Unit Improved Terrain Scanner Targeting Computer Core Shielding Tractor Beam Heavy EM Pulse Gun Peak State ------------ > --- POWER ------------ Light Nuclear Core > --- PROPULSION ------- Aluminum Leg Aluminum Leg > --- UTILITY ---------- Large Storage Unit Structural Scanner Visual Processing Unit Seismic Detector > --- WEAPON ----------- Heavy EM Pulse Gun EM Shotgun > --- INVENTORY -------- Ion Engine Light Ion Engine Light Treads Hover Unit Flight Unit Medium Storage Unit Large Storage Unit Improved Terrain Scanner Targeting Computer Core Shielding Tractor Beam EM Shotgun Grenade Launcher Datajack [Rating: 15] Favorites ----------- Power Light Ion Engine Engine Light Ion Engine Power Core Light Nuclear Core Propulsion Light Treads Treads Light Treads Leg Aluminum Leg Wheel Wheel Hover Unit Hover Unit Flight Unit Flight Unit Utility Visual Processing Unit Device Seismic Detector Storage Large Storage Unit Processor Visual Processing Unit Protection Core Shielding Weapon EM Shotgun Energy Gun EM Shotgun Ballistic Gun Light Assault Rifle Launcher Grenade Launcher Special Weapon Mining Laser Special Melee Weapon Datajack Build | -11 -10 -10 -9 ------- Run | Yrd Mat Min Mat Slots Evolved 2 | . . . 2 Power . | . . . . Propulsion . | . . . . Utility 2 | . . . 2 Weapon . | . . . . Parts Attached 38 | 8 14 . 16 Power 8 | 1 2 . 5 Engine 5 | 1 1 . 3 Core 3 | . 1 . 2 Reactor . | . . . . Propulsion 10 | 2 4 . 4 Treads 4 | . 4 . . Leg 2 | . . . 2 Wheel 2 | 2 . . . Hover 1 | . . . 1 Flight 1 | . . . 1 Utility 10 | 2 6 . 2 Device 6 | 2 2 . 2 Storage 2 | . 2 . . Processor 1 | . 1 . . Hackware . | . . . . Protection 1 | . 1 . . Artifact . | . . . . Weapon 10 | 3 2 . 5 Energy Gun 5 | 1 1 . 3 Energy Cannon . | . . . . Ballistic Gun 1 | 1 . . . Ballistic Cannon . | . . . . Launcher 2 | . 1 . 1 Special Weapon 1 | 1 . . . Impact Weapon . | . . . . Slashing Weapon . | . . . . Piercing Weapon . | . . . . Special Melee Weapon 1 | . . . 1 Unidentified Prototypes . | . . . . Parts Lost 11 | . . . 11 Power 2 | . . . 2 Propulsion 3 | . . . 3 Utility 2 | . . . 2 Weapon 4 | . . . 4 Highest Loss Streak 11 | . . . 11 To Critical Strikes . | . . . . Average Slot Usage (%) 98 | . 99 100 93 Engine 12 | . 13 14 5 Treads 23 | . 27 28 5 Leg 2 | . . . 13 Device 5 | . 3 . 20 Storage 11 | . 10 14 11 Processor 12 | . 11 14 11 Protection 1 | . 2 . . Energy Gun 13 | . 11 14 19 Ballistic Gun 1 | . 2 . . Launcher 11 | . 13 14 1 Naked Turns . | . . . . Heaviest Build 33 | 7 29 29 33 Greatest Support 40 | 20 40 40 40 Greatest Overweight (x) 9 | . . . 9 Average Overweight (x) . | . . . . Largest Inventory Capacity 15 | 5 15 15 15 Average Capacity 9 | 5 12 15 15 Most Carried 15 | 5 11 14 15 Average Carried 7 | 3 7 13 12 Final Capacity 15 | 5 15 15 15 Final Carried 14 | 4 11 14 7 Class Distribution -------------------- 95% | Mutant 4% | Scavenger-Mutant Dominant Class ---------------- Mutant | -10/Materials Mutant | -10/Mines Scavenger-Mutant | -9/Materials Resources | -11 -10 -10 -9 ----------- Run | Yrd Mat Min Mat Matter Collected 635 | 287 208 . 140 Remotely . | . . . . Salvage Created 1222 | 105 318 57 742 Parts 72 | 8 26 6 32 Haulers Intercepted 1 | . . . 1 Recyclers Shooed . | . . . . Parts Field Recycled . | . . . . Retrieved Matter . | . . . . Parts Self-Destructed . | . . . . Prevented . | . . . . Kills | -11 -10 -10 -9 ------- Run | Yrd Mat Min Mat Combat Hostiles Destroyed 31 | 1 11 3 16 Guns 21 | 1 6 3 11 AOE 8 | . 5 . 3 Classes Destroyed 8 | 2 2 . 4 Builder 1 | . . . 1 Tunneler 3 | 3 . . . Hauler 1 | . . . 1 Watcher 3 | . 3 . . Swarmer 9 | . 6 3 . Grunt 16 | 1 5 . 10 Duelist 1 | . . . 1 Sentry 5 | . . . 5 Best Kill Streak 5 | 1 3 3 5 Combat Bots Only 4 | 1 3 3 4 Max Kills in Single Turn 2 | 1 2 1 2 Gunslinging . | . . . . Exploded 2 | . 2 . 2 Melee . | . . . . Uniques/NPCs Destroyed . | . . . . Combat | -11 -10 -10 -9 -------- Run | Yrd Mat Min Mat Hostile Shots Fired 161 | 1 22 11 127 Missed 49 | . 11 3 35 Damage Taken 1435 | 12 102 62 1259 Core 436 | . 21 6 409 Absorbed by Shields . | . . . . Redirected to Shielding 2 | . 2 . . Regen/Repaired (Parts) 20 | . . . 20 Core Remaining (%) 94 | 100 . 89 . Volleys Fired 138 | 54 32 7 45 Largest 2 | 2 2 1 2 Hottest 100 | 100 50 45 90 Shots Fired 166 | 61 33 7 65 Gun 113 | 14 30 7 62 Cannon . | . . . . Launcher 6 | . 3 . 3 Special 47 | 47 . . . Kinetic 23 | 7 16 . . Thermal 55 | 47 . . 8 Explosive 6 | . 3 . 3 Electromagnetic 82 | 7 14 7 54 Robot Hit Streak 10 | 9 10 4 10 Robot Miss Streak 3 | . 3 1 1 Penetration Max . | . . . . Secondary Targets 1 | . . . 1 Max Gunslinging Chain 1 | . . . 1 Shots Hit Robots 88 | 9 21 6 52 Core Hits 64 | 5 23 4 32 Critical Kills 1 | . 1 . . Critical Parts Destroyed . | . . . . Critical Strikes 2 | . 1 . 1 Destroy 1 | . 1 . . Corrupt 1 | . . . 1 Melee Attacks . | . . . . Impact . | . . . . Slashing . | . . . . Piercing . | . . . . Sneak Attacks . | . . . . Combat Hostiles . | . . . . Follow-up Attacks . | . . . . Damage Inflicted 1835 | 100 616 74 1045 Guns 1209 | 100 262 74 773 Cannons . | . . . . Explosions 626 | . 354 . 272 Melee . | . . . . Ramming . | . . . . Kinetic 98 | 21 77 . . Thermal 154 | . . . 154 Explosive 563 | . 354 . 209 Electromagnetic 1020 | 79 185 74 682 Impact . | . . . . Slashing . | . . . . Piercing . | . . . . Highest Corruption . | . . . . Average Corruption . | . . . . Corruption Purged . | . . . . Corruption Blocked . | . . . . Overload Shots . | . . . . Overflow Damage 1 | . . . 1 Projectiles . | . . . . Explosions 1 | . . . 1 Melee . | . . . . Knockbacks . | . . . . Impact . | . . . . Kinetic . | . . . . Secondary . | . . . . Self-Inflicted Damage 72 | . . . 72 Shots 2 | . . . 2 Rammed . | . . . . Targets Rammed . | . . . . Kicked . | . . . . Crushed . | . . . . Highest Temperature 195 | 120 38 24 195 Average Temperature 48 | 38 11 11 79 Received Heat Transfer 537 | 6 30 . 501 Siege Activations . | . . . . Robots Corrupted 2 | . . . 2 Combat Hostiles 2 | . . . 2 Parts Fried 8 | . 2 . 6 Impact Corruptions . | . . . . Robots Melted . | . . . . Combat Hostiles . | . . . . Parts Melted 1 | . . . 1 Heat Transferred 322 | . . . 322 Parts Sabotaged . | . . . . Parts Stolen . | . . . . Parts Stripped . | . . . . Power Chain Reactions 1 | . . . 1 Alert | -11 -10 -10 -9 ------- Run | Yrd Mat Min Mat Peak Influence 392 | 20 159 85 392 Initial . | . . . . Average 31 | 3 43 20 125 Maximum Alert Level 1 | . . . 1 Low Security (%) 98 | 100 100 100 88 Level 1 1 | . . . 11 Level 2 . | . . . . Level 3 . | . . . . Level 4 . | . . . . Level 5 . | . . . . High Security . | . . . . Max Security . | . . . . Squads Dispatched 6 | . 2 . 4 Investigation 2 | . 1 . 1 Extermination . | . . . . Reinforcement 4 | . 1 . 3 Assault . | . . . . Garrison . | . . . . Intercept . | . . . . Searches Triggered . | . . . . Construction Impeded 1 | . . . 1 Haulers Reinforced . | . . . . Active Scanning Responses . | . . . . Cargo Convoy Interrupts . | . . . . Stealth | -11 -10 -10 -9 --------- Run | Yrd Mat Min Mat Distress Signals 4 | . 1 . 3 Communications Jammed . | . . . . Distress Signals . | . . . . Times Spotted 54 | 1 21 3 29 Peak Tracking Total 7 | 1 4 3 7 Tactical Retreats 2 | . . . 2 Traps | -11 -10 -10 -9 ------- Run | Yrd Mat Min Mat Traps Triggered 1 | . 1 . . Indirectly . | . . . . Trap Hack Attempts . | . . . . Triggered . | . . . . Disarmed . | . . . . Reprogrammed . | . . . . Reused . | . . . . Traps Extracted . | . . . . Installed . | . . . . Triggered 1 | . . . 1 Machines | -11 -10 -10 -9 ---------- Run | Yrd Mat Min Mat Machines Disabled 2 | . 2 . . Max in Single Turn 2 | . 2 . . Machines Repaired . | . . . . Machines Dismantled . | . . . . Machines Sabotaged . | . . . . Overloaded Fab Kills . | . . . . Hacking | -11 -10 -10 -9 --------- Run | Yrd Mat Min Mat Machines Accessed 6 | . 5 . 1 Terminals 4 | . 4 . . Fabricators . | . . . . Repair Stations 2 | . 1 . 1 Recycling Units . | . . . . Scanalyzers . | . . . . Garrison Access . | . . . . Total Hacks 9 | . 7 . 2 Successful 8 | . 6 . 2 Failed 1 | . 1 . . Catastrophic . | . . . . Database Lockouts . | . . . . Manual . | . . . . Terminals 6 | . 6 . . Fabricators . | . . . . Repair Stations 3 | . 1 . 2 Recycling Units . | . . . . Scanalyzers . | . . . . Garrison Access . | . . . . Terminal Hacks 5 | . 5 . . Record 4 | . 4 . . Maintenance Status 1 | . 1 . . Fabricator Hacks . | . . . . Repair Station Hacks 3 | . 1 . 2 Scan Component 2 | . 1 . 1 Repair 1 | . . . 1 Recycling Unit Hacks . | . . . . Scanalyzer . | . . . . Garrison Access Hacks . | . . . . Unauthorized Hacks . | . . . . Terminals . | . . . . Fabricators . | . . . . Repair Stations . | . . . . Recycling Units . | . . . . Scanalyzers . | . . . . Garrison Access . | . . . . Data Cores Recovered . | . . . . Used . | . . . . Hacking Detections 3 | . 3 . . Full Trace Events . | . . . . Feedback Events . | . . . . Feedback Blocked . | . . . . Robot Schematics Acquired . | . . . . Robots Built . | . . . . Authchips . | . . . . Time . | . . . . Total Robot Build Rating . | . . . . Part Schematics Acquired . | . . . . Parts Built . | . . . . Authchips . | . . . . Time . | . . . . Total Part Build Rating . | . . . . Parts Repaired 1 | . . . 1 Time 38 | . . . 38 Parts Recycled . | . . . . Recycled Matter . | . . . . Retrieved Matter . | . . . . Retrieved Components . | . . . . Parts Scanalyzed . | . . . . Part Schematics Acquired . | . . . . Parts Damaged . | . . . . Bothacking | -11 -10 -10 -9 ------------ Run | Yrd Mat Min Mat Used RIF Installer . | . . . . Robots Hacked . | . . . . Non-combat . | . . . . Combat . | . . . . Robot Hacks Applied . | . . . . Relay Couplers Released . | . . . . Fabnet Peak Effective % . | . . . . Robots Rewired . | . . . . Allies Hacked . | . . . . Hacks Repelled . | . . . . Allies | -11 -10 -10 -9 -------- Run | Yrd Mat Min Mat Total Allies 3 | . . 3 . Largest Group 3 | . . 3 3 Highest-Rated Group 40 | . . 40 40 Highest-Rated Ally 16 | . . 16 16 Total Orders . | . . . . Ally Attacks 23 | . . . 23 Total Damage 319 | . . . 319 Kills 3 | . . . 3 Allies Corrupted . | . . . . Allies Melted . | . . . . Intel | -11 -10 -10 -9 ------- Run | Yrd Mat Min Mat Robot Analysis Total . | . . . . Derelict Logs Recovered 2 | . . 2 . Drone Launches . | . . . . Drone Recoveries . | . . . . Exploration | -11 -10 -10 -9 ------------- Run | Yrd Mat Min Mat Turns Passed 7228 | 2942 2448 1126 712 Spaces Moved 5509 | 3399 1171 693 246 Core 21 | 17 . . 4 Treads 1888 | . 1110 693 85 Legs 153 | . . . 153 Wheels 3443 | 3382 61 . . Hover 4 | . . . 4 Flight . | . . . . Fastest Speed 50 | 50 80 160 160 Average Speed 111 | 79 155 160 198 Slowest Speed 500 | 80 160 160 500 Overloaded Moves . | . . . . Propulsion Burnouts . | . . . . Robots Hopped . | . . . . Cave-ins Triggered . | . . . . Exploration Rate (%) 68 | 47 100 97 29 Regions Visited 3 Branch Regions 1 Pre-discovered Areas . | . . . . Known Exits Taken . | . . . . Unknown Exits Taken 3 | 1 1 1 . Scrap Searched 1 | . . 1 . Spaces Dug 26 | 26 . . . Terrain Destroyed 85 | 38 18 . 29 Melee . | . . . . Projectile 38 | 38 . . . AOE 47 | . 18 . 29 Terrain Rammed . | . . . . Walls Destroyed . | . . . . Machines Disabled . | . . . . Actions | -11 -10 -10 -9 --------- Run | Yrd Mat Min Mat Total 6364 | 3474 1777 703 410 Wait 590 | . 506 1 83 Move 5506 | 3398 1170 692 246 Hop . | . . . . Pick Up 52 | 12 29 3 8 Fast Attach . | . . . . Attach 33 | 8 12 . 13 Detach 10 | 1 4 . 5 Swap 5 | . 2 . 3 Drop 30 | 1 22 . 7 Fire 138 | 54 32 7 45 Melee . | . . . . Ram . | . . . . Kick . | . . . . Crush . | . . . . Escape Stasis . | . . . . Rewire . | . . . . Trap . | . . . . Miscellaneous . | . . . . Route ------- -11/Scrapyard -10/Materials (discovered 6 exits: *Mat x3 / [*Min x2] / [*Sub]) -10/Mines (discovered 2 exits: *Mat x2) -9/Materials (discovered 1 exit: [*Sto]) History --------- Turn | Location | Event 2 | -11/Scrapyard | Met Revision 17 57 | -11/Scrapyard | Discovered new exit (range 8) 2943 | -11/Scrapyard | Entered Materials 2944 | -10/Materials | Build established: Mutant 3022 | -10/Materials | Discovered new exit (range 6) 3801 | -10/Materials | Discovered new exit (range 10) 4036 | -10/Materials | Discovered new exit (range 5) 4597 | -10/Materials | Discovered new exit (range 17) 4618 | -10/Materials | Discovered new exit (range 10) 5102 | -10/Materials | Discovered new exit (range 18) 5391 | -10/Materials | Entered Mines 5481 | -10/Mines | Discovered new exit (range 15) 5542 | -10/Mines | Learned Materials terminal intel 5685 | -10/Mines | Learned Materials security intel 5701 | -10/Mines | Discovered new exit (range 10) 6376 | -10/Mines | Assisted by bots powering up and referring to "LRC-V3" 6517 | -10/Mines | Entered Materials 6517 | -9/Materials | Accompanied by 3 allies 6517 | -9/Materials | Evolved 2 slots: Utility x2 6519 | -9/Materials | Loaded intel: 12 terminal locations 6655 | -9/Materials | Discovered new exit (range 6) 6821 | -9/Materials | Repaired Lgt. Nuclear Core 7064 | -9/Materials | Build established: Scavenger-Mutant 7152 | -9/Materials | Core integrity fell below 50% 7194 | -9/Materials | Core integrity fell below 20% 7229 | -9/Materials | Destroyed by G-34 Mercenary with Small Laser Last Messages --------------- U-05 Engineer lays Concrete. K-01 Serf collects debris. U-05 Engineer builds a Wall. U-05 Engineer lays Concrete. EM Shotgun destroyed. U-05 Engineer lays Concrete. K-01 Serf collects debris. G-34 Mercenary destroyed. K-01 Serf collects debris. Structural Scanner destroyed. K-01 Serf collects debris. Hover Unit destroyed. G-34 Mercenary destroyed. K-01 Serf collects debris. Ion Engine destroyed. K-01 Serf collects debris. G-34 Mercenary destroyed. K-01 Serf collects debris. Acquired 28 matter. K-01 Serf collects debris. Map ----- +----------------------------------------------------+ | ?????????????????????????????????????????????????? | | ?????????????????????????????????????????????????? | | ?????????????????????????????????????????????????? | | ??????????? ?????#####??????????????????????? | | ???????????###+##?????#####??????????????????????? | | ??????????? ????? ??????????????????????? | | ????????????## ?????? ????????? ?????????? | | ???????????? # ????? ????????? ?????????? | | ???????????? # ???? ????????? ?????????? | | ???????????? # ??# ??? # #????????? | | ???????????????? ###/########### ##????????? | | ????????????????? ## !###### #### ##????????? | | ?????????????????? # #%! # ##????????? | | ??????????????????? ##*!! """"" # ##????????? | | ???????"T"?????????? ""T"" # ##????????? | | ????????????????????### %! # ######????? | | ????????????????????## # ######## ######????? | | ????????????????????## #[## # !!##????? | | ?????????????????""" # [% """ # !!##????? | | ?????????????????"T" ## %% # """ # !!##????? | | ???????????????????? ## #### """ # !!##????? | | ?????????????????????### #### # !!##????? | | ?????????????????????### #### %/= !!##????? | | ???"""???????? ## ###########% ######????? | | ???"T"????????##+####### # ##### ######????? | | ???????## ????## % @ ! gm ##????##### | | ???????## g = k k %[* ##????##### | | ???????## ###### ######## | | ????????? ################ ##### k ######## | | ?????????????? ################ # # | | ??????????????????? # # # | | ??????????????????? # # # | | ??????????????????? + /% + | | ??????????????????? # #% # | | ????????????????????? # # | | ?????????????????????? ########### | | ?????????????????????? ######### ########### | | ?????????????????????? #"" " ""# ##???????## | | ?????????????????????? ?????????? # #####????## | | ????????????????????????????????? # #####???? # | | ????????????????????????????????? # | | ????????????????????????????????? < + | | ????????????????????????????????? # | | ?????????????????????????????? ## ##### # | | ??????????????????????????????###### ########### | | ?????????????????????????????? + + ? #### | | ?????T???????????????????????????? # ?????????## | | ?????????????????????????????????? # ?????????## | | ?????????????????????????????????? # ??????????? | | ???????????????????????????????????? ??????????? | +----------------------------------------------------+ Best States ------------- Heat Dissipation 28 Energy Generation 14 Energy Capacity 250 Matter Stores 300 Matter Capacity 300 Sight Range 18 Terrain Scan Range 16 Terrain Scan Density 10 Core Shielding 20 Evasion (%) 50 Recoil Reduction 2 Item Schematics ----------------- None Robot Schematics ------------------ None Fabricated ------------ Nothing Alien Tech Used ----------------- None Achievements -------------- Crack Shot Let's See Who's Tougher Loot Pinata Part-time Mechanic Power Corrupts Uninvited Guest Challenges ------------ None Game ------ Seed SystemBiomechanicalStorage Manual? 0 Play Time 02:08:31 Cumulative 2.3 hours Start 2024.04.02 @ 17:43:28 End 2024.04.02 @ 23:11:03 Sessions 3 Manual Loads 0 Difficulty Rogue Special Mode None Game No. 2 Rogue 2 Adventurer 0 Explorer 0 Win Type - Total 0 Types 0/0/0/0/0/0/0/0/0 Lore% 0 Gallery% 2 Achievement% 3 Wizard Run 0 Options --------- Layout 1 ASCII 0 Keyboard 0 Movement Mouse Keybinds 0 Fullscreen 0 Font 28/SmallcapsGlow Map View 50x35 Zoom Use 0% Tactical HUD 0 Map Filters NONE Filters NONE Steam 1 RUN: 49731ef1-7000-441e-bcbe-e1ab01310e80